bitfinex/quotes_SOLUSD_20250904
["timestamp","ask_amount","ask_price","bid_price","bid_amount"]
[1757009151728,37.84,204.95,204.94,8.48378656]
[1757009151902,0.06,204.95,204.94,8.48378656]
[1757009152104,37.84,204.95,204.94,8.48378656]
[1757009154235,37.34,204.95,204.94,8.48378656]
[1757009154527,37.76,204.95,204.94,8.48378656]
[1757009155633,37.76,204.95,204.94,22.07938057]
[1757009156228,37.76,204.95,204.94,19.19507093]
[1757009156439,0.2,204.96,204.94,22.07938057]
[1757009156614,0.2,204.96,204.95,3.60430964]
[1757009157619,0.2,204.96,204.95,8.48354847]
[1757009158436,0.06,204.98,204.95,8.48354847]
[1757009158639,0.06,204.98,204.97,19.36421329]
[1757009158842,0.06,205.0,204.98,13.59559401]
[1757009159045,0.06,205.0,204.99,14.4215482]
[1757009159416,0.06,205.0,204.99,18.77115633]
[1757009159714,0.06,205.0,204.99,12.11220451]
[1757009160612,0.06,205.0,204.99,4.34960813]
[1757009160817,0.06,205.0,204.99,2.88430964]
[1757009161047,0.06,205.0,204.99,16.47990365]
[1757009161217,0.06,205.0,204.99,20.10951178]
[1757009161417,0.06,205.0,204.99,16.47990365]
[1757009161847,0.06,205.0,204.96,4.87894061]
[1757009162059,0.06,205.0,204.99,2.88430964]
[1757009162362,0.42,204.99,204.96,6.51580391]
[1757009162544,0.42,204.99,204.96,6.51733349]
[1757009162860,0.06,205.0,204.98,2.88430964]
[1757009163061,0.06,205.0,204.99,2.88430964]
[1757009163239,37.9,205.0,204.97,6.51733349]
[1757009163434,37.9,205.0,204.98,2.88430964]
[1757009163635,0.06,205.0,204.99,2.88430964]
[1757009163846,37.9,205.0,204.99,2.88430964]
[1757009164049,0.06,205.0,204.99,2.88430964]
[1757009164243,37.9,205.0,204.99,2.88430964]
[1757009164449,0.06,205.0,204.99,2.88430964]
[1757009164753,0.06,205.0,204.99,25.71481772]
[1757009166540,0.06,205.0,204.99,37.25205628]
[1757009167341,0.06,205.0,204.99,25.71481772]
[1757009169254,0.06,205.0,204.99,37.25205628]
[1757009169661,0.06,205.0,204.99,22.83050808]
[1757009169850,0.06,205.0,204.99,37.25205628]
[1757009170959,0.06,205.0,204.99,25.71481772]
[1757009172664,0.06,205.0,204.99,22.07819039]
[1757009173877,0.06,205.0,204.99,25.7183575]
[1757009174349,0.06,205.0,204.99,22.07819039]
[1757009174856,0.06,205.0,204.99,25.7184972]
[1757009175551,0.06,205.0,204.99,22.07819039]
[1757009176144,0.06,205.0,204.99,25.71854641]
[1757009179969,0.06,205.0,204.99,22.11423677]
[1757009180274,0.06,205.0,204.99,24.99854641]
[1757009180669,0.06,205.0,204.99,25.71854641]
[1757009180970,0.06,205.0,204.99,16.47990365]
[1757009181169,0.48,205.0,204.98,0.03]
[1757009181373,3.36430964,205.0,204.98,0.03]
[1757009181566,0.48,205.0,204.98,0.03]
[1757009181754,2.88430964,204.99,204.98,0.03]
[1757009182278,0.42,204.99,204.98,0.03]
[1757009182673,43.05828674,204.99,204.98,0.03]
[1757009185484,38.18,204.99,204.98,0.03]
[1757009186177,0.42,204.99,204.98,0.03]
[1757009186374,37.76,204.99,204.98,0.03]
[1757009186958,41.06430964,204.99,204.98,0.03]
[1757009187384,45.94259638,204.99,204.98,0.03]
[1757009187974,38.18,204.99,204.98,0.03]
[1757009188173,37.76,204.99,204.98,0.03]
[1757009188494,37.82,205.0,204.98,3.63430964]
[1757009188792,0.06,205.0,204.99,3.60430964]
[1757009189684,0.06,205.0,204.99,7.25101633]
[1757009190486,0.06,205.0,204.99,25.72489708]
[1757009194595,0.06,205.0,204.99,17.9623007]
[1757009194798,0.06,205.0,204.99,17.24380641]
[1757009197407,0.06,205.0,204.99,25.72640279]
[1757009197782,0.06,205.0,204.99,27.68158035]
[1757009198392,0.06,205.0,204.99,17.96380641]
[1757009198802,0.06,205.0,204.99,17.24380641]
[1757009199000,0.06,205.0,204.99,20.84811605]
[1757009199198,0.06,205.0,204.99,25.72640279]
[1757009199580,0.06,205.0,204.99,17.24380641]
[1757009199991,0.06,205.0,204.99,22.12209315]
[1757009200392,0.06,205.0,204.99,17.24380641]
[1757009200797,0.06,205.0,204.98,3.63430964]
[1757009200798,3.36430964,205.0,204.98,0.03]
[1757009200986,0.48,205.0,204.98,0.03]
[1757009201190,3.30430964,204.99,204.98,0.03]
[1757009201505,2.88430964,204.99,204.98,0.03]
[1757009201883,3.30430964,204.99,204.98,0.03]
[1757009202684,8.18259638,204.99,204.98,0.03]
[1757009204690,5.29828674,204.99,204.98,0.03]
[1757009204891,8.18259638,204.99,204.98,0.03]
[1757009205312,45.98259638,204.99,204.98,0.03]
[1757009205993,45.56259638,204.99,204.98,0.03]
[1757009206714,2.88430964,204.99,204.98,0.03]
[1757009206913,40.68430964,204.99,204.98,0.03]
[1757009207114,37.8,204.99,204.98,0.03]
[1757009207318,0.06,205.0,204.98,4.40020726]
[1757009207509,0.06,205.0,204.99,0.72]
[1757009208417,4.56495507,205.0,204.98,0.03]
[1757009208613,4.50495507,204.99,204.98,0.03]
[1757009209409,9.38324181,204.99,204.98,0.03]
[1757009209610,4.50495507,204.99,204.98,0.03]
[1757009210118,37.82,204.99,204.98,0.03]
[1757009210320,42.32495507,204.99,204.98,0.03]
[1757009210527,42.74495507,204.99,204.98,0.03]
[1757009210702,42.32495507,204.99,204.98,0.03]
[1757009215024,47.62324181,204.99,204.98,0.03]
[1757009219202,26.0,204.96,204.95,0.03]
[1757009219429,68.30495507,204.96,204.95,0.03]
[1757009219626,68.72495507,204.96,204.95,0.03]
[1757009220008,73.60395585,204.96,204.95,0.03]
[1757009222910,35.38395585,204.96,204.95,0.03]
[1757009223117,73.18395585,204.96,204.95,0.03]
[1757009223732,35.38395585,204.96,204.95,0.03]
[1757009224040,73.16395585,204.96,204.95,0.03]
[1757009224334,35.38395585,204.96,204.95,0.03]
[1757009224632,73.16395585,204.96,204.95,0.03]
[1757009225031,73.58395585,204.96,204.95,0.03]
[1757009226634,73.16395585,204.96,204.95,0.03]
[1757009226835,35.38395585,204.96,204.95,0.03]
[1757009227014,73.16395585,204.96,204.95,0.03]
[1757009228012,73.16395585,204.96,204.95,0.69]
[1757009228211,42.28495507,204.96,204.95,0.69]
[1757009228418,37.78,204.96,204.95,0.69]
[1757009228612,4.93831202,204.99,204.95,0.69]
[1757009228613,4.50495507,204.98,204.95,0.69]
[1757009228922,0.06,204.99,204.95,0.03]
[1757009228923,4.50495507,204.96,204.95,0.03]
[1757009229124,4.92495507,204.96,204.95,0.03]
[1757009230017,9.80395585,204.96,204.95,0.03]
[1757009230217,4.87900078,204.96,204.95,0.03]
[1757009230421,47.24395585,204.96,204.95,0.03]
[1757009230829,4.87900078,204.96,204.95,0.03]
[1757009231026,47.24395585,204.96,204.95,0.03]
[1757009231343,47.66395585,204.96,204.95,0.03]
[1757009232616,47.66395585,204.96,204.93,0.03]
[1757009232817,30.50495507,204.94,204.93,0.03]
[1757009233136,68.36495507,204.94,204.93,0.03]
[1757009233719,73.66443199,204.94,204.93,0.03]
[1757009234418,78.16938706,204.94,204.92,0.03]
[1757009234622,9.00991014,204.93,204.92,0.03]
[1757009234836,9.42991014,204.93,204.92,0.03]
[1757009235324,4.92495507,204.93,204.92,0.03]
[1757009235934,9.80467009,204.93,204.92,0.03]
[1757009237115,9.80467009,204.93,204.89,0.03]
[1757009237116,26.0,204.9,204.89,0.03]
[1757009237324,72.84991014,204.9,204.87,0.03]
[1757009237649,0.42,204.89,204.87,0.03]
[1757009237949,42.74090589,204.88,204.87,0.03]
[1757009238146,47.68586096,204.88,204.87,0.03]
[1757009238438,4.50495507,204.83,204.8,0.71]
[1757009238640,4.50495507,204.81,204.77,0.1]
[1757009238833,4.50495507,204.78,204.77,0.1]
[1757009239025,42.38495507,204.78,204.77,0.1]
[1757009239224,42.38495507,204.78,204.77,0.81]
[1757009241544,42.38495507,204.78,204.77,0.1]
[1757009241855,47.26824445,204.78,204.77,0.1]
[1757009244740,26.0,204.75,204.74,0.03]
[1757009244924,68.38495507,204.75,204.74,0.03]
[1757009245123,30.50495507,204.75,204.74,0.03]
[1757009245325,68.38495507,204.75,204.74,0.03]
[1757009246144,30.50495507,204.75,204.74,0.03]
[1757009246345,68.38495507,204.75,204.74,0.03]
[1757009246945,73.26895995,204.75,204.74,0.03]
[1757009247249,35.38895995,204.75,204.74,0.03]
[1757009247452,73.24895995,204.75,204.74,0.03]
[1757009247753,35.38895995,204.75,204.74,0.03]
[1757009248051,73.24895995,204.75,204.74,0.03]
[1757009249532,73.66895995,204.75,204.74,0.03]
[1757009250350,73.24895995,204.75,204.74,0.03]
[1757009250958,35.38895995,204.75,204.74,0.03]
[1757009251156,73.24895995,204.75,204.74,0.03]
[1757009251456,73.66895995,204.75,204.74,0.03]
[1757009251644,73.66895995,204.75,204.73,0.03]
[1757009251839,4.92495507,204.74,204.73,0.03]
[1757009252446,4.50495507,204.74,204.73,0.03]
[1757009252652,9.8091985,204.74,204.73,0.03]
[1757009253748,26.0,204.72,204.71,0.03]
[1757009253952,68.36495507,204.72,204.71,0.03]
[1757009254543,72.86991014,204.72,204.71,0.03]
[1757009255551,39.89463073,204.72,204.71,0.03]
[1757009255739,30.88472059,204.72,204.71,0.03]
[1757009255944,39.89463073,204.72,204.71,0.03]
[1757009256153,77.73463073,204.72,204.71,0.03]
[1757009257442,39.89463073,204.72,204.71,0.03]
[1757009257644,77.73463073,204.72,204.71,0.03]
[1757009259150,78.15463073,204.72,204.71,0.03]
[1757009259461,77.73463073,204.72,204.71,0.03]
[1757009260162,39.89463073,204.72,204.71,0.03]
[1757009260359,77.71463073,204.72,204.71,0.03]
[1757009261874,39.89463073,204.72,204.71,0.03]
[1757009262167,73.20967566,204.72,204.71,0.74]
[1757009264263,35.38967566,204.72,204.71,0.74]
[1757009264561,73.22967566,204.72,204.71,0.74]
[1757009267039,30.88472059,204.72,204.71,0.74]
[1757009267247,73.20967566,204.72,204.71,0.74]
[1757009267468,71.59767425,204.72,204.71,0.03]
[1757009267759,83.58948889,204.72,204.7,0.03]
[1757009267969,14.4647683,204.71,204.7,0.03]
[1757009268145,40.4647683,204.7,204.69,0.03]
[1757009268462,78.3047683,204.7,204.69,0.03]
[1757009268956,78.2847683,204.7,204.69,0.03]
[1757009269960,45.76996615,204.7,204.69,0.03]
[1757009270272,87.59244725,204.7,204.69,0.03]
[1757009271370,87.17244725,204.7,204.69,0.03]
[1757009271870,49.35244725,204.7,204.69,0.03]
[1757009272064,87.17244725,204.7,204.69,0.03]
[1757009272454,49.77244725,204.7,204.69,0.03]
[1757009272755,87.59244725,204.7,204.69,0.03]
[1757009273552,87.17244725,204.7,204.69,0.03]
[1757009273749,26.0,204.67,204.66,0.03]
[1757009273953,66.71295366,204.67,204.65,0.03]
[1757009274267,2.89295366,204.66,204.63,0.67]
[1757009274476,66.71295366,204.65,204.63,0.67]
[1757009274768,66.71295366,204.65,204.61,0.67]
[1757009275359,66.71295366,204.65,204.62,0.7]
[1757009275766,71.59934505,204.65,204.62,0.03]
[1757009277069,33.77934505,204.65,204.62,0.03]
[1757009277275,71.61934505,204.65,204.64,0.7]
[1757009277449,30.88639139,204.65,204.64,0.7]
[1757009277648,71.61934505,204.65,204.64,0.7]
[1757009278852,73.57902464,204.65,204.64,0.03]
[1757009279448,73.57902464,204.65,204.64,0.7]
[1757009279449,1.95967959,204.65,204.64,0.7]
[1757009279644,7.83770885,204.72,204.64,3.59295366]
[1757009279849,2.89295366,204.7,204.65,3.41295366]
[1757009280047,37.96,204.69,204.66,0.52]
[1757009280269,37.96,204.68,204.66,3.41295366]
[1757009280452,37.96,204.68,204.67,0.52]
[1757009280643,4.94475519,204.72,204.67,0.52]
[1757009280848,40.85295366,204.71,204.68,0.52]
[1757009281073,37.96,204.71,204.68,0.52]
[1757009282473,37.96,204.71,204.66,2.89295366]
[1757009282657,37.96,204.71,204.69,0.52]
[1757009282976,37.94,204.7,204.69,0.52]
[1757009283177,37.94,204.7,204.66,0.52]
[1757009283383,2.89295366,204.69,204.64,0.55]
[1757009283565,37.94,204.68,204.65,0.52]
[1757009284775,2.89295366,204.67,204.64,0.03]
[1757009285077,2.89295366,204.65,204.64,0.03]
[1757009285681,3.58295366,204.65,204.64,0.03]
[1757009286880,31.57639139,204.65,204.64,0.03]
[1757009287186,34.46934505,204.65,204.64,0.03]
[1757009287779,72.40934505,204.65,204.64,0.03]
[1757009288588,46.40934505,204.65,204.64,0.03]
[1757009290158,48.36931271,204.65,204.64,0.03]
[1757009291580,10.42931271,204.65,204.64,0.03]
[1757009291773,6.84635905,204.65,204.64,0.03]
[1757009291973,39.89996766,204.65,204.64,0.03]
[1757009292177,42.79292132,204.65,204.64,0.03]
[1757009292587,47.67931271,204.65,204.64,0.03]
[1757009297090,36.42931271,204.65,204.64,0.03]
[1757009297300,48.34931271,204.65,204.64,0.03]
[1757009297976,10.42931271,204.65,204.64,0.03]
[1757009298182,48.32931271,204.65,204.64,0.03]
[1757009298381,47.63931271,204.65,204.64,0.03]
[1757009298881,48.33931271,204.65,204.64,0.03]
[1757009299788,10.43931271,204.65,204.64,0.03]
[1757009299991,48.33931271,204.65,204.64,0.03]
[1757009301800,13.59559401,204.64,204.62,0.03]
[1757009302008,40.4647683,204.6,204.59,0.03]
[1757009302309,78.4647683,204.6,204.59,0.03]
[1757009302494,81.12512018,204.6,204.59,0.03]
[1757009303788,86.01270571,204.6,204.59,0.03]
[1757009304784,98.23166954,204.6,204.49,0.65]
[1757009304985,26.0,204.56,204.49,0.1]
[1757009305187,2.89295366,204.5,204.49,0.1]
[1757009305400,40.87295366,204.5,204.49,0.1]
[1757009306309,12.22151793,204.56,204.49,0.1]
[1757009306310,26.0,204.57,204.49,3.54295366]
[1757009306505,0.7,204.6,204.51,2.89295366]
[1757009306682,4.99155806,204.57,204.53,2.89295366]
[1757009306878,2.89295366,204.59,204.54,0.55]
[1757009307117,146.49559401,204.66,204.54,0.55]
[1757009307118,4.88639139,204.65,204.54,0.55]
[1757009307415,2.89295366,204.63,204.57,2.89295366]
[1757009307582,7.88312478,204.64,204.58,3.44295366]
[1757009307779,40.95295366,204.63,204.59,0.55]
[1757009307986,40.95295366,204.63,204.53,54.29319095]
[1757009307987,40.95295366,204.62,204.53,40.69759694]
[1757009308211,38.06,204.61,204.6,0.55]
[1757009308702,3.59295366,204.61,204.56,0.55]
[1757009308894,38.06,204.6,204.56,3.44295366]
[1757009309207,38.06,204.6,204.57,3.44295366]
[1757009309388,38.06,204.6,204.58,0.55]
[1757009310096,38.06,204.6,204.59,0.55]
[1757009311601,38.06,204.6,204.58,0.55]
[1757009311801,38.06,204.6,204.59,0.55]
[1757009313109,38.06,204.6,204.57,0.58]
[1757009313810,38.06,204.6,204.57,0.03]
[1757009313811,46.54060899,204.6,204.57,0.03]
[1757009314114,2.89295366,204.59,204.57,0.03]
[1757009314317,38.04,204.58,204.57,0.03]
[1757009315108,7.78060899,204.6,204.57,0.03]
[1757009315311,38.04,204.58,204.57,0.03]
[1757009316294,38.74,204.58,204.57,0.03]
[1757009316494,45.801017,204.58,204.57,0.03]
[1757009316916,4.88899804,204.61,204.57,0.03]
[1757009317118,2.89295366,204.59,204.57,0.03]
[1757009317309,41.65295366,204.58,204.57,0.03]
[1757009317902,31.55330554,204.58,204.57,0.03]
[1757009318429,67.11295366,204.58,204.57,0.03]
[1757009318905,28.89295366,204.58,204.57,0.03]
[1757009319106,26.0,204.61,204.57,0.03]
[1757009319311,1.9600637,204.6,204.57,3.47295366]
[1757009319524,7.78006668,204.62,204.57,0.58]
[1757009319934,38.26,204.61,204.57,0.58]
[1757009320542,38.26,204.61,204.58,0.55]
[1757009320921,38.26,204.61,204.57,0.03]
[1757009321136,38.26,204.61,204.57,0.58]
[1757009321554,132.9,204.64,204.58,2.89295366]
[1757009321720,38.24,204.63,204.58,3.44295366]
[1757009322045,41.83295366,204.63,204.58,3.44295366]
[1757009322224,41.83295366,204.63,204.58,2.89295366]
[1757009322548,41.83295366,204.63,204.58,8.33099765]
[1757009322924,38.94,204.63,204.58,8.33099765]
[1757009323940,43.82689677,204.63,204.58,3.44295366]
[1757009324156,2.89295366,204.6,204.57,0.03]
[1757009324437,41.11295366,204.6,204.57,0.03]
[1757009324650,41.81295366,204.6,204.57,0.03]
[1757009325144,3.59295366,204.59,204.57,0.03]
[1757009326127,0.7,204.59,204.57,0.03]
[1757009326445,3.59295366,204.59,204.57,0.03]
[1757009327135,2.89295366,204.59,204.57,0.03]
[1757009327542,4.52388992,204.59,204.57,0.03]
[1757009328253,38.22,204.58,204.57,0.03]
[1757009332729,48.31195326,204.58,204.57,0.03]
[1757009333759,50.27220907,204.58,204.57,0.03]
[1757009338658,76.19220907,204.58,204.57,0.03]
[1757009338961,74.23195326,204.58,204.57,0.03]
[1757009341264,30.52388992,204.58,204.57,0.03]
[1757009341560,74.21195326,204.58,204.57,0.03]
[1757009343849,26.0,204.58,204.57,0.03]
[1757009344058,42.62388992,204.58,204.57,0.03]
[1757009345147,4.52388992,204.58,204.57,0.03]
[1757009345345,42.62388992,204.58,204.57,0.03]
[1757009345973,42.60388992,204.58,204.57,0.03]
[1757009347168,38.08,204.58,204.57,0.03]
[1757009347551,38.08,204.58,204.57,0.58]
[1757009347758,0.06,204.6,204.57,0.58]
[1757009348179,43.28388992,204.59,204.57,0.03]
[1757009348478,5.20388992,204.58,204.57,0.03]
[1757009349080,4.52388992,204.58,204.57,0.03]
[1757009349264,38.08,204.59,204.57,0.03]
[1757009350060,5.20388992,204.58,204.57,0.03]
[1757009350459,4.52388992,204.58,204.57,0.03]
[1757009351059,9.41195326,204.58,204.57,0.03]
[1757009351261,4.52388992,204.58,204.57,0.03]
[1757009352101,0.06,204.6,204.57,0.03]
[1757009352302,38.1,204.59,204.57,0.58]
[1757009352792,38.1,204.59,204.57,0.03]
[1757009354293,0.06,204.6,204.57,0.03]
[1757009354473,38.1,204.59,204.57,0.03]
[1757009355279,38.08,204.58,204.57,0.03]
[1757009357996,38.79,204.58,204.57,0.03]
[1757009358181,38.75,204.58,204.57,0.03]
[1757009359284,38.75,204.58,204.57,4.55388992]
[1757009360004,38.75,204.58,204.57,0.03]
[1757009364395,43.63806334,204.58,204.57,0.03]
[1757009364604,38.75,204.58,204.57,0.03]
[1757009366996,38.04,204.58,204.57,0.03]
[1757009367203,37.98,204.58,204.57,0.03]
[1757009368223,38.69,204.58,204.57,0.03]
[1757009369930,0.71,204.58,204.57,0.03]
[1757009370294,38.67,204.58,204.57,0.03]
[1757009370510,0.71,204.58,204.57,0.03]
[1757009370793,38.67,204.58,204.57,0.03]
[1757009373118,0.06,204.59,204.57,0.03]
[1757009373513,37.94,204.58,204.57,0.03]
[1757009373705,38.65,204.58,204.57,0.03]
[1757009374421,37.94,204.58,204.57,0.03]
[1757009374801,38.65,204.58,204.57,0.03]
[1757009376808,0.71,204.58,204.57,0.03]
[1757009377011,37.92,204.58,204.57,0.03]
[1757009377922,38.63,204.58,204.57,0.03]
[1757009378523,0.06,204.59,204.57,0.03]
[1757009378727,37.92,204.58,204.57,0.03]
[1757009380723,0.06,204.59,204.57,0.03]
[1757009380931,37.92,204.58,204.57,0.03]
[1757009383236,38.63,204.58,204.57,0.03]
[1757009384206,43.15388992,204.58,204.57,0.03]
[1757009384531,48.04195326,204.58,204.57,0.03]
[1757009388447,48.02195326,204.58,204.57,0.03]
[1757009388830,43.13388992,204.58,204.57,0.03]
[1757009389363,48.02195326,204.58,204.57,0.03]
[1757009389540,46.3946413,204.58,204.57,0.03]
[1757009391735,8.4946413,204.58,204.57,0.03]
[1757009391953,46.3946413,204.58,204.57,0.03]
[1757009393155,8.4946413,204.58,204.57,0.03]
[1757009393647,46.3946413,204.58,204.57,0.03]
[1757009395667,45.6846413,204.58,204.57,0.03]
[1757009395850,46.3546413,204.58,204.57,0.03]
[1757009396945,8.4546413,204.58,204.57,0.03]
[1757009397150,43.45806334,204.58,204.57,0.03]
[1757009397343,46.3546413,204.58,204.57,0.03]
[1757009397539,8.4546413,204.58,204.57,0.03]
[1757009397750,46.3546413,204.58,204.57,0.03]
[1757009398667,5.55806334,204.58,204.57,0.03]
[1757009398844,46.3546413,204.58,204.57,0.03]
[1757009399044,48.31480105,204.58,204.57,0.03]
[1757009400569,43.42673771,204.58,204.57,0.03]
[1757009400865,1.96015975,204.58,204.57,0.58]
[1757009401089,37.96,204.59,204.57,0.58]
[1757009401366,37.96,204.59,204.58,0.55]
[1757009401668,37.96,204.59,204.58,3.66568548]
[1757009401858,0.06,204.59,204.58,7.11226344]
[1757009402792,0.06,204.59,204.58,25.59592079]
[1757009403161,0.06,204.59,204.58,22.69934283]
[1757009403888,0.06,204.59,204.58,25.5931417]
[1757009405684,0.06,204.59,204.58,22.69656374]
[1757009405892,0.06,204.59,204.58,3.66290639]
[1757009406186,0.06,204.59,204.58,4.21290639]
[1757009406561,0.06,204.59,204.58,11.99565198]
[1757009406762,0.06,204.59,204.58,9.09907402]
[1757009406957,0.06,204.59,204.58,11.99565198]
[1757009409188,0.06,204.59,204.58,27.5506376]
[1757009413372,0.06,204.59,204.58,24.65405964]
[1757009413579,0.06,204.59,204.58,27.0006376]
[1757009413779,0.06,204.59,204.58,27.5506376]
[1757009413983,0.06,204.59,204.58,27.0006376]
[1757009414785,0.06,204.59,204.58,19.2159963]
[1757009415086,0.06,204.59,204.58,27.0006376]
[1757009416689,0.06,204.59,204.58,19.2159963]
[1757009417081,0.06,204.59,204.58,22.11257426]
[1757009417289,0.06,204.59,204.58,26.99502196]
[1757009417979,0.06,204.59,204.58,27.54502196]
[1757009420292,0.06,204.59,204.58,65.45502196]
[1757009421109,0.06,204.59,204.58,62.008444]
[1757009421304,0.06,204.59,204.58,64.90502196]
[1757009422002,0.06,204.59,204.58,24.128444]
[1757009422194,0.75,204.59,204.58,19.24038066]
[1757009424108,0.75,204.59,204.58,3.68539504]
[1757009424401,0.75,204.59,204.58,0.03]
[1757009425603,0.06,204.59,204.58,0.03]
[1757009425782,0.75,204.59,204.58,0.03]
[1757009428503,3.64657796,204.59,204.58,0.03]
[1757009428884,0.75,204.59,204.58,0.03]
[1757009430990,8.53440238,204.59,204.58,0.03]
[1757009431189,3.64657796,204.59,204.58,0.03]
[1757009432807,0.75,204.59,204.58,0.03]
[1757009439002,3.64657796,204.59,204.58,0.03]
[1757009440736,8.53440238,204.59,204.58,0.03]
[1757009441206,8.53440238,204.59,204.57,0.03]
[1757009441207,10.49456213,204.59,204.57,0.03]
[1757009441413,26.0,204.56,204.55,0.03]
[1757009441621,28.89657796,204.56,204.55,0.03]
[1757009441815,31.54702593,204.56,204.55,0.03]
[1757009442017,69.42702593,204.56,204.55,0.03]
[1757009442729,74.31556718,204.56,204.55,0.03]
[1757009449402,36.43556718,204.56,204.55,0.03]
[1757009449600,1.96044797,204.56,204.55,5.1671]
[1757009449802,0.06,204.59,204.56,13.59559401]
[1757009450001,0.06,204.59,204.58,13.59559401]
[1757009450432,0.06,204.59,204.58,4.5271]
[1757009450600,0.06,204.59,204.58,18.12269401]
[1757009450806,0.06,204.59,204.58,23.01075735]
[1757009451116,0.06,204.59,204.58,28.62222762]
[1757009451331,0.06,204.59,204.58,24.97005298]
[1757009452225,0.72,204.59,204.58,1.95929563]
[1757009452414,43.3671,204.59,204.55,0.03]
[1757009452613,43.3671,204.59,204.55,1.98987162]
[1757009453416,5.2471,204.59,204.55,1.98987162]
[1757009453619,38.24,204.59,204.56,4.5271]
[1757009454223,38.24,204.59,204.55,11.40573715]
[1757009455031,38.24,204.59,204.55,6.87863715]
[1757009455230,38.24,204.59,204.55,15.05888819]
[1757009455411,38.24,204.59,204.55,11.40573715]
[1757009456506,0.06,204.59,204.56,18.12269401]
[1757009456701,0.06,204.59,204.57,3.65338041]
[1757009456908,0.72,204.59,204.55,6.87863715]
[1757009457114,0.72,204.59,204.56,3.65355888]
[1757009457308,0.72,204.59,204.55,11.40573715]
[1757009457517,0.66,204.58,204.55,1.98987162]
[1757009457830,4.5871,204.59,204.55,10.53250312]
[1757009458013,0.72,204.59,204.55,10.53250312]
[1757009458210,0.66,204.58,204.55,5.6437961]
[1757009458441,5.1871,204.57,204.55,0.03]
[1757009458737,0.06,204.59,204.55,0.03]
[1757009458738,5.1871,204.56,204.55,0.03]
[1757009459113,4.5271,204.57,204.55,0.03]
[1757009459335,0.66,204.56,204.55,0.03]
[1757009460338,5.1871,204.56,204.55,0.03]
[1757009461518,0.66,204.56,204.55,0.03]
[1757009461839,10.07564125,204.56,204.55,0.03]
[1757009463240,5.54854125,204.56,204.55,0.03]
[1757009463434,10.07564125,204.56,204.55,0.03]
[1757009467644,48.21564125,204.56,204.55,0.03]
[1757009468042,0.66,204.58,204.55,0.03]
[1757009468343,43.3271,204.57,204.55,0.03]
[1757009468541,4.5271,204.56,204.55,0.03]
[1757009468721,5.1871,204.56,204.55,0.03]
[1757009469522,4.5271,204.56,204.55,0.03]
[1757009470044,42.6671,204.56,204.55,0.03]
[1757009470447,0.06,204.59,204.56,4.88854125]
[1757009470622,0.06,204.59,204.58,4.5271]
[1757009471040,0.06,204.59,204.58,8.18310404]
[1757009471938,0.06,204.59,204.58,26.66676139]
[1757009474158,0.06,204.6,204.59,13.59559401]
[1757009474358,1e-08,204.6,204.59,26.30579805]
[1757009475528,1e-08,204.6,204.59,31.19362247]
[1757009475722,1e-08,204.6,204.59,26.66652247]
[1757009476548,1e-08,204.6,204.59,31.19362247]
[1757009478248,1e-08,204.6,204.59,26.66652247]